{"text_format":"1","workbook":"xlsx","n_sheets":3,"sheets":["Funcion sustituir","Macros sustitute","UDF Y MACROS"],"not_rendered":{"charts":0,"images":0,"macros":1,"external_links":0,"defined_names":0,"comments":0,"pivot_tables":0},"unopened":[],"bounds":{"document_bytes":16777216,"sheet_cells":100000,"rows_first":2000,"rows_last":500,"rows_between":2000,"halvings":0,"cell_chars":16384,"cell_head_chars":4096},"cells_cut":0,"cells_raw":0,"read":"whole","date_system":"1900"}

{"sheet":"Funcion sustituir","index":0,"n_rows":12,"n_cols":4,"rows_kept":12,"cut":false,"hidden":false,"merged":[]}
[null,null,"Palabras con tilde","Palabras sin tilde"]
[null,null,"maría",{"$f":"SUBSTITUTE(SUBSTITUTE(SUBSTITUTE(SUBSTITUTE(SUBSTITUTE(C2,\"á\",\"a\"),\"é\",\"e\"),\"í\",\"i\"),\"ó\",\"o\"),\"ú\",\"u\")","v":"maria"}]
[null,null,"maría ruíz",{"$f":"SUBSTITUTE(SUBSTITUTE(SUBSTITUTE(SUBSTITUTE(SUBSTITUTE(C3,\"á\",\"a\"),\"é\",\"e\"),\"í\",\"i\"),\"ó\",\"o\"),\"ú\",\"u\")","v":"maria ruiz"}]
[null,null,"pénelopátíóú pérez",{"$f":"SUBSTITUTE(SUBSTITUTE(SUBSTITUTE(SUBSTITUTE(SUBSTITUTE(C4,\"á\",\"a\"),\"é\",\"e\"),\"í\",\"i\"),\"ó\",\"o\"),\"ú\",\"u\")","v":"penelopatiou perez"}]
[null,null,"pánfilo sarás tirá",{"$f":"SUBSTITUTE(SUBSTITUTE(SUBSTITUTE(SUBSTITUTE(SUBSTITUTE(C5,\"á\",\"a\"),\"é\",\"e\"),\"í\",\"i\"),\"ó\",\"o\"),\"ú\",\"u\")","v":"panfilo saras tira"}]
[]
[null,null,"Codigos de las vocales con tildes"]
[null,null,"á",{"$f":"CODE(C8)","v":225}]
[null,null,"é",{"$f":"CODE(C9)","v":233}]
[null,null,"í",237]
[null,null,"ó",243]
[null,null,"ú",250]

{"sheet":"Macros sustitute","index":1,"n_rows":6,"n_cols":5,"rows_kept":6,"cut":false,"hidden":false,"merged":[]}
[null,null,null,"Palabras con tilde","Palabras sin tilde"]
[null,null,null,"Ingeniería",{"$f":"SUBSTITUTE(SUBSTITUTE(SUBSTITUTE(SUBSTITUTE(SUBSTITUTE(D2,\"á\",\"a\"),\"é\",\"e\"),\"í\",\"i\"),\"ó\",\"o\"),\"ú\",\"u\")","v":"Ingenieria"}]
[null,null,null,"María Ruíz",{"$f":"SUBSTITUTE(SUBSTITUTE(SUBSTITUTE(SUBSTITUTE(SUBSTITUTE(D3,\"á\",\"a\"),\"é\",\"e\"),\"í\",\"i\"),\"ó\",\"o\"),\"ú\",\"u\")","v":"Maria Ruiz"}]
[null,null,null,"Energía","Energia"]
[null,null,null,"Un día María decidió estudiar Ingeniería","Un dia Maria decidio estudiar Ingenieria"]
[null,null,null,"El ratón es su ratonería","El raton es su ratoneria"]

{"sheet":"UDF Y MACROS","index":2,"n_rows":13,"n_cols":5,"rows_kept":13,"cut":false,"hidden":false,"merged":[]}
[null,null,null,"Palabras con tilde"]
[null,null,null,"Ingenieria"]
[null,null,null,"Maria Ruiz"]
[null,null,null,"Energia"]
[null,null,null,"Un dia Maria decidió estudiar Ingenieria"]
[null,null,null,"El ratón es su ratoneria"]
[]
[null,null,null,null,{"$f":"txtNoAcc(D2)","v":"Ingenieria"}]
[null,null,null,null,{"$f":"txtNoAcc(D3)","v":"Maria Ruiz"}]
[null,null,null,null,"Energia"]
[null,null,null,null,"Un dia Maria decidio estudiar Ingenieria"]
[null,null,null,null,"El raton es su ratoneria"]
[null,null,null,null,""]